[Event "*** Titled Tuesday Blitz"]
[Site "Chess.com"]
[Date "2021.04.20"]
[Round "1"]
[White "gagtemp"]
[Black "draksbg"]
[Result "0-1"]
[WhiteElo "1970"]
[BlackElo "2480"]
[TimeControl "180+1"]
[EndTime "10:08:58 PDT"]
[Termination "draksbg won by resignation"]

1. e4 {[%clk 0:03:00.9]} 1... c5 {[%clk 0:02:58.7]} 2. Nf3 {[%clk 0:03:00.2]}
2... Nc6 {[%clk 0:02:57.6]} 3. d4 {[%clk 0:03:00.2]} 3... cxd4 {[%clk
0:02:58.5]} 4. Nxd4 {[%clk 0:03:00.8]} 4... g6 {[%clk 0:02:57]} 5. Nc3 {[%clk
0:02:59.2]} 5... Bg7 {[%clk 0:02:54.6]} 6. Be3 {[%clk 0:02:56.4]} 6... Nf6
{[%clk 0:02:52.3]} 7. Bc4 {[%clk 0:02:54.6]} 7... O-O {[%clk 0:02:51.7]} 8. f3
{[%clk 0:02:53.4]} 8... Qa5 {[%clk 0:02:47.3]} 9. Qd2 {[%clk 0:02:45.6]} 9... a6
{[%clk 0:02:14.5]} 10. Bb3 {[%clk 0:02:44.3]} 10... b5 {[%clk 0:02:12.2]} 11.
O-O-O {[%clk 0:02:33.8]} 11... Bb7 {[%clk 0:02:10]} 12. Kb1 {[%clk 0:02:24.1]}
12... Nxd4 {[%clk 0:02:00.6]} 13. Bxd4 {[%clk 0:02:22.8]} 13... b4 {[%clk
0:02:00.7]} 14. Ne2 {[%clk 0:02:12.8]} 14... Bc6 {[%clk 0:01:56.9]} 15. Qe3
{[%clk 0:02:07.8]} 15... Qb5 {[%clk 0:01:55]} 16. c4 {[%clk 0:01:53.4]} 16...
bxc3 {[%clk 0:01:54.9]} 17. Bxc3 {[%clk 0:01:52.1]} 17... a5 {[%clk 0:01:53.5]}
18. Nd4 {[%clk 0:01:45.4]} 18... Qa6 {[%clk 0:01:53.4]} 19. h4 {[%clk
0:01:41.2]} 19... a4 {[%clk 0:01:53]} 20. Nxc6 {[%clk 0:01:31.8]} 20... Qxc6
{[%clk 0:01:52.2]} 21. Bd5 {[%clk 0:01:26.5]} 21... Nxd5 {[%clk 0:01:52.1]} 22.
exd5 {[%clk 0:01:25.9]} 22... Qd6 {[%clk 0:01:28.4]} 23. Bxg7 {[%clk 0:01:25.1]}
23... Kxg7 {[%clk 0:01:29.3]} 24. Qd4+ {[%clk 0:01:23.2]} 24... Qf6 {[%clk
0:01:28.3]} 25. Qxf6+ {[%clk 0:01:20]} 25... Kxf6 {[%clk 0:01:29.2]} 26. Rd4
{[%clk 0:01:19.7]} 26... Rfb8 {[%clk 0:01:24.3]} 27. h5 {[%clk 0:01:16.3]} 27...
g5 {[%clk 0:01:24]} 28. Rc1 {[%clk 0:01:10.7]} 28... Rb7 {[%clk 0:01:23.6]} 29.
Rcc4 {[%clk 0:01:09.1]} 29... a3 {[%clk 0:01:23.2]} 30. b3 {[%clk 0:01:07.8]}
30... d6 {[%clk 0:01:22]} 31. Kc2 {[%clk 0:01:06.7]} 31... Ra5 {[%clk
0:01:17.1]} 32. Kd3 {[%clk 0:01:02.1]} 32... Rbb5 {[%clk 0:01:15.7]} 33. Ke4
{[%clk 0:01:00.2]} 33... Rc5 {[%clk 0:01:05.8]} 34. Ra4 {[%clk 0:00:59.4]} 34...
Rxa4 {[%clk 0:01:03.9]} 35. Rxa4 {[%clk 0:00:58.4]} 35... Rc2 {[%clk 0:01:04.6]}
36. Rxa3 {[%clk 0:00:57.4]} 36... Rxg2 {[%clk 0:01:05.1]} 37. b4 {[%clk
0:00:51.5]} 37... Rb2 {[%clk 0:00:59]} 38. Rb3 {[%clk 0:00:50]} 38... Rxa2
{[%clk 0:00:59.3]} 39. b5 {[%clk 0:00:49.7]} 39... Ra7 {[%clk 0:00:59.5]} 40. b6
{[%clk 0:00:49.6]} 40... Rb7 {[%clk 0:01:00.2]} 41. f4 {[%clk 0:00:49]} 41... g4
{[%clk 0:00:59.9]} 42. Ke3 {[%clk 0:00:40.1]} 42... Kf5 {[%clk 0:00:57.7]} 43.
Rb4 {[%clk 0:00:36.7]} 43... e5 {[%clk 0:00:56]} 44. fxe5 {[%clk 0:00:34.5]}
44... Kxe5 {[%clk 0:00:56.9]} 45. Rxg4 {[%clk 0:00:29]} 45... f5 {[%clk
0:00:47.9]} 46. Rb4 {[%clk 0:00:25.7]} 46... Kxd5 {[%clk 0:00:48.3]} 47. Kf4
{[%clk 0:00:25.7]} 47... Kc5 {[%clk 0:00:49.1]} 48. Rb1 {[%clk 0:00:22.4]} 48...
Rxb6 {[%clk 0:00:38.6]} 49. Rd1 {[%clk 0:00:17.9]} 49... d5 {[%clk 0:00:38.1]}
50. Kxf5 {[%clk 0:00:18]} 50... d4 {[%clk 0:00:37.8]} 51. Rc1+ {[%clk 0:00:17]}
51... Kb4 {[%clk 0:00:37.9]} 52. Rc7 {[%clk 0:00:15.9]} 52... h6 {[%clk
0:00:29.6]} 53. Ke4 {[%clk 0:00:13.1]} 53... Rd6 {[%clk 0:00:29]} 54. Kd3 {[%clk
0:00:11.8]} 54... Kb5 {[%clk 0:00:27.1]} 55. Rg7 {[%clk 0:00:11]} 55... Rd5
{[%clk 0:00:27.2]} 56. Rb7+ {[%clk 0:00:09.5]} 56... Kc5 {[%clk 0:00:26.6]} 57.
Rc7+ {[%clk 0:00:09.1]} 57... Kd6 {[%clk 0:00:26.8]} 58. Rc4 {[%clk 0:00:09]}
58... Ke5 {[%clk 0:00:27.4]} 59. Rc8 {[%clk 0:00:07.3]} 59... Kf4 {[%clk
0:00:22.9]} 60. Rc4 {[%clk 0:00:07.3]} 60... Ke5 {[%clk 0:00:16.4]} 61. Rc7
{[%clk 0:00:06.7]} 61... Rd6 {[%clk 0:00:16.6]} 62. Rc4 {[%clk 0:00:06.1]} 62...
Rd7 {[%clk 0:00:15.5]} 63. Rc5+ {[%clk 0:00:06]} 63... Kf4 {[%clk 0:00:15.9]}
64. Rc6 {[%clk 0:00:05.6]} 64... Kg5 {[%clk 0:00:15.8]} 65. Rc5+ {[%clk
0:00:05.8]} 65... Kg4 {[%clk 0:00:16.1]} 66. Rc4 {[%clk 0:00:06]} 66... Kxh5
{[%clk 0:00:16.5]} 67. Rxd4 {[%clk 0:00:06]} 67... Rxd4+ {[%clk 0:00:17.4]} 68.
Kxd4 {[%clk 0:00:06.4]} 68... Kg4 {[%clk 0:00:18.3]} 69. Ke3 {[%clk 0:00:06.6]}
69... Kg3 {[%clk 0:00:18.5]} 70. Ke2 {[%clk 0:00:06.6]} 70... Kg2 {[%clk
0:00:18.7]} 71. Ke1 {[%clk 0:00:05.9]} 71... h5 {[%clk 0:00:17.7]} 0-1

[Event "*** Titled Tuesday Blitz"]
[Site "Chess.com"]
[Date "2021.04.20"]
[Round "1"]
[White "Kapibara_Warri0r"]
[Black "GameOverBro"]
[Result "1/2-1/2"]
[WhiteElo "2235"]
[BlackElo "2550"]
[TimeControl "180+1"]
[EndTime "10:09:00 PDT"]
[Termination "Game drawn by stalemate"]

1. e4 {[%clk 0:03:00.9]} 1... d6 {[%clk 0:02:59]} 2. d4 {[%clk 0:03:00.4]} 2...
Nf6 {[%clk 0:02:59.4]} 3. Nc3 {[%clk 0:03:00.8]} 3... e5 {[%clk 0:02:58.6]} 4.
Nf3 {[%clk 0:02:58.4]} 4... Nbd7 {[%clk 0:02:58.4]} 5. Bc4 {[%clk 0:02:58.5]}
5... Be7 {[%clk 0:02:58.5]} 6. a4 {[%clk 0:02:58.7]} 6... c6 {[%clk 0:02:58.5]}
7. O-O {[%clk 0:02:58.6]} 7... Qc7 {[%clk 0:02:57.8]} 8. Ba2 {[%clk 0:02:59]}
8... h6 {[%clk 0:02:57.9]} 9. h3 {[%clk 0:02:55.9]} 9... Nf8 {[%clk 0:02:57.8]}
10. Nh4 {[%clk 0:02:49.8]} 10... Ne6 {[%clk 0:02:57.4]} 11. dxe5 {[%clk
0:02:44.9]} 11... dxe5 {[%clk 0:02:57.2]} 12. Nf5 {[%clk 0:02:45.5]} 12... O-O
{[%clk 0:02:57.3]} 13. Qf3 {[%clk 0:02:34.1]} 13... Ng5 {[%clk 0:02:54.4]} 14.
Bxg5 {[%clk 0:02:23.9]} 14... hxg5 {[%clk 0:02:53.6]} 15. Qg3 {[%clk 0:02:03.5]}
15... Nh5 {[%clk 0:02:47.7]} 16. Qg4 {[%clk 0:01:47.5]} 16... g6 {[%clk
0:02:44.4]} 17. h4 {[%clk 0:01:41.1]} 17... Bxf5 {[%clk 0:02:17.2]} 18. exf5
{[%clk 0:01:40.3]} 18... Qc8 {[%clk 0:02:17.3]} 19. hxg5 {[%clk 0:01:15.6]}
19... Qxf5 {[%clk 0:02:16.9]} 20. Qc4 {[%clk 0:01:02.7]} 20... Bxg5 {[%clk
0:02:08.4]} 21. Ne4 {[%clk 0:01:00.4]} 21... Nf4 {[%clk 0:01:53.8]} 22. Nd6
{[%clk 0:00:42.1]} 22... Qg4 {[%clk 0:01:51.1]} 23. g3 {[%clk 0:00:42.3]} 23...
Kg7 {[%clk 0:01:38.2]} 24. Nxf7 {[%clk 0:00:37.4]} 24... Qh3 {[%clk 0:01:10.4]}
25. Qe4 {[%clk 0:00:25.6]} 25... Rh8 {[%clk 0:00:42.3]} 26. Nxh8 {[%clk
0:00:16.6]} 26... Rxh8 {[%clk 0:00:43.2]} 27. Qxe5+ {[%clk 0:00:16.9]} 27... Bf6
{[%clk 0:00:42.3]} 28. Qc7+ {[%clk 0:00:16.7]} 28... Kh6 {[%clk 0:00:41.4]} 29.
Qxf4+ {[%clk 0:00:10.9]} 29... Bg5 {[%clk 0:00:41.6]} 30. Qf3 {[%clk 0:00:07.6]}
30... Kg7 {[%clk 0:00:38.5]} 31. Qg2 {[%clk 0:00:07.6]} 31... Qg4 {[%clk
0:00:33.8]} 32. Rad1 {[%clk 0:00:07.4]} 32... Rf8 {[%clk 0:00:27.2]} 33. Rfe1
{[%clk 0:00:07.4]} 33... a6 {[%clk 0:00:22.7]} 34. Rd6 {[%clk 0:00:06.3]} 34...
Qf5 {[%clk 0:00:13.4]} 35. Red1 {[%clk 0:00:06]} 35... Be7 {[%clk 0:00:06.5]}
36. Rd7 {[%clk 0:00:06]} 36... Re8 {[%clk 0:00:06]} 37. c3 {[%clk 0:00:02.7]}
37... b5 {[%clk 0:00:05.2]} 38. Bb1 {[%clk 0:00:03.1]} 38... Qf6 {[%clk
0:00:05.1]} 39. Qf3 {[%clk 0:00:03.5]} 39... Qxf3 {[%clk 0:00:04.4]} 40. Re1
{[%clk 0:00:03.5]} 40... Qf6 {[%clk 0:00:04.2]} 41. Rc7 {[%clk 0:00:03.2]} 41...
bxa4 {[%clk 0:00:04]} 42. Ba2 {[%clk 0:00:03.4]} 42... Kf8 {[%clk 0:00:04]} 43.
Re6 {[%clk 0:00:03.9]} 43... Qf3 {[%clk 0:00:02.1]} 44. Rcxc6 {[%clk 0:00:03.9]}
44... Qd1+ {[%clk 0:00:02.3]} 45. Kg2 {[%clk 0:00:03.8]} 45... Qc2 {[%clk
0:00:02.8]} 46. Rxg6 {[%clk 0:00:02.8]} 46... Bh4 {[%clk 0:00:02.4]} 47. Rg8+
{[%clk 0:00:01.2]} 47... Ke7 {[%clk 0:00:02.9]} 48. Re6+ {[%clk 0:00:01.6]}
48... Kd7 {[%clk 0:00:03.3]} 49. Rexe8 {[%clk 0:00:01.7]} 49... Bf6 {[%clk
0:00:03.1]} 50. Rgf8 {[%clk 0:00:01.7]} 50... Be7 {[%clk 0:00:02.9]} 51. Be6+
{[%clk 0:00:02.4]} 51... Kxe6 {[%clk 0:00:02.8]} 52. Rf3 {[%clk 0:00:02.8]}
52... Qe4 {[%clk 0:00:03.2]} 53. Rg8 {[%clk 0:00:03]} 53... Kd7 {[%clk
0:00:03.7]} 54. Rg7 {[%clk 0:00:03.3]} 54... a3 {[%clk 0:00:03.9]} 55. Kh2
{[%clk 0:00:03]} 55... Qe6 {[%clk 0:00:02.7]} 56. Kg2 {[%clk 0:00:03]} 56... Qc6
{[%clk 0:00:02.4]} 57. Rf7 {[%clk 0:00:03.6]} 57... Kd8 {[%clk 0:00:02.9]} 58.
bxa3 {[%clk 0:00:03.6]} 58... Qc4 {[%clk 0:00:02.4]} 59. R3f4 {[%clk 0:00:03.7]}
59... Qd5+ {[%clk 0:00:02.8]} 60. Kh2 {[%clk 0:00:03.6]} 60... Bd6 {[%clk
0:00:03.7]} 61. Rf3 {[%clk 0:00:03.3]} 61... Qh5+ {[%clk 0:00:03.8]} 62. Kg2
{[%clk 0:00:03.3]} 62... Qd5 {[%clk 0:00:04.7]} 63. Kh2 {[%clk 0:00:03.7]} 63...
Be5 {[%clk 0:00:04.9]} 64. Kg1 {[%clk 0:00:03.9]} 64... a5 {[%clk 0:00:05]} 65.
Rf8+ {[%clk 0:00:03.9]} 65... Kd7 {[%clk 0:00:05.1]} 66. R3f7+ {[%clk
0:00:04.3]} 66... Kd6 {[%clk 0:00:05.4]} 67. Rd8+ {[%clk 0:00:04.4]} 67... Ke6
{[%clk 0:00:05.5]} 68. Rxd5 {[%clk 0:00:05.3]} 68... Kxd5 {[%clk 0:00:06.3]} 69.
Rf5 {[%clk 0:00:04.9]} 69... a4 {[%clk 0:00:05.6]} 70. Rxe5+ {[%clk 0:00:05.4]}
70... Kxe5 {[%clk 0:00:06.5]} 71. Kg2 {[%clk 0:00:05.8]} 71... Kd5 {[%clk
0:00:07.2]} 72. f3 {[%clk 0:00:06.2]} 72... Kc4 {[%clk 0:00:08.1]} 73. g4 {[%clk
0:00:06.6]} 73... Kb3 {[%clk 0:00:08.8]} 74. g5 {[%clk 0:00:07.3]} 74... Kxa3
{[%clk 0:00:09.7]} 75. g6 {[%clk 0:00:08.1]} 75... Kb2 {[%clk 0:00:10.6]} 76. g7
{[%clk 0:00:08.6]} 76... a3 {[%clk 0:00:11.5]} 77. g8=Q {[%clk 0:00:08.9]} 77...
a2 {[%clk 0:00:12.4]} 78. Qxa2+ {[%clk 0:00:09]} 78... Kxa2 {[%clk 0:00:12.7]}
79. f4 {[%clk 0:00:09.9]} 79... Kb3 {[%clk 0:00:13.6]} 80. Kg3 {[%clk
0:00:10.7]} 80... Kc4 {[%clk 0:00:14.5]} 81. Kg4 {[%clk 0:00:11.4]} 81... Kd5
{[%clk 0:00:15.4]} 82. Kg5 {[%clk 0:00:12]} 82... Ke6 {[%clk 0:00:16.3]} 83. f5+
{[%clk 0:00:12.4]} 83... Kf7 {[%clk 0:00:17.2]} 84. c4 {[%clk 0:00:12.3]} 84...
Kg8 {[%clk 0:00:18.1]} 85. c5 {[%clk 0:00:12.8]} 85... Kf8 {[%clk 0:00:18.6]}
86. c6 {[%clk 0:00:13.5]} 86... Ke7 {[%clk 0:00:19.5]} 87. c7 {[%clk 0:00:13.9]}
87... Kd7 {[%clk 0:00:19.7]} 88. f6 {[%clk 0:00:14.5]} 88... Kc8 {[%clk
0:00:20.6]} 89. Kg6 {[%clk 0:00:15.1]} 89... Kb7 {[%clk 0:00:21.3]} 90. f7
{[%clk 0:00:15.8]} 90... Ka7 {[%clk 0:00:22.1]} 91. f8=Q {[%clk 0:00:16.2]}
91... Kb6 {[%clk 0:00:23]} 92. Qb4+ {[%clk 0:00:15.9]} 92... Ka7 {[%clk
0:00:23.9]} 93. c8=Q {[%clk 0:00:15]} 1/2-1/2

[Event "*** Titled Tuesday Blitz"]
[Site "Chess.com"]
[Date "2021.04.20"]
[Round "1"]
[White "Steven_Rojas"]
[Black "Sychev_Klementy"]
[Result "1/2-1/2"]
[WhiteElo "2476"]
[BlackElo "2896"]
[TimeControl "180+1"]
[EndTime "10:09:41 PDT"]
[Termination "Game drawn by stalemate"]

1. c4 {[%clk 0:03:00.9]} 1... e5 {[%clk 0:02:56.2]} 2. Nc3 {[%clk 0:03:01.3]}
2... Nf6 {[%clk 0:02:55.1]} 3. Nf3 {[%clk 0:03:01.2]} 3... Nc6 {[%clk
0:02:54.8]} 4. e3 {[%clk 0:03:01.5]} 4... Bb4 {[%clk 0:02:53.7]} 5. Qc2 {[%clk
0:03:02]} 5... Bxc3 {[%clk 0:02:53.4]} 6. Qxc3 {[%clk 0:03:02.9]} 6... Qe7
{[%clk 0:02:54]} 7. d4 {[%clk 0:03:02.7]} 7... Ne4 {[%clk 0:02:41.3]} 8. Qd3
{[%clk 0:03:02.7]} 8... exd4 {[%clk 0:02:41.5]} 9. Nxd4 {[%clk 0:03:02]} 9...
O-O {[%clk 0:02:41.6]} 10. Be2 {[%clk 0:02:33.7]} 10... Qb4+ {[%clk 0:02:39]}
11. Kf1 {[%clk 0:02:33.2]} 11... Qe7 {[%clk 0:02:38]} 12. f3 {[%clk 0:02:26.6]}
12... f5 {[%clk 0:02:36.4]} 13. g3 {[%clk 0:02:09.8]} 13... d6 {[%clk
0:02:18.6]} 14. Kg2 {[%clk 0:02:07.7]} 14... Ng5 {[%clk 0:02:11.7]} 15. Nxc6
{[%clk 0:02:03.9]} 15... bxc6 {[%clk 0:02:09.7]} 16. b3 {[%clk 0:01:57.2]} 16...
c5 {[%clk 0:01:39.3]} 17. Bd2 {[%clk 0:01:52.1]} 17... Bb7 {[%clk 0:01:35]} 18.
Rae1 {[%clk 0:01:52.6]} 18... Qe6 {[%clk 0:01:25.9]} 19. h4 {[%clk 0:01:45.7]}
19... Ne4 {[%clk 0:01:13.6]} 20. Rd1 {[%clk 0:01:31.7]} 20... Rae8 {[%clk
0:01:09.6]} 21. Be1 {[%clk 0:01:29.5]} 21... Rf6 {[%clk 0:01:03.4]} 22. Rg1
{[%clk 0:00:54.1]} 22... Rg6 {[%clk 0:00:58.7]} 23. Kh2 {[%clk 0:00:53.6]} 23...
Nf6 {[%clk 0:00:56.9]} 24. Bf2 {[%clk 0:00:54]} 24... Bc8 {[%clk 0:00:49]} 25.
Bf1 {[%clk 0:00:52.3]} 25... Bb7 {[%clk 0:00:45.4]} 26. Bg2 {[%clk 0:00:50.9]}
26... Nd7 {[%clk 0:00:44.1]} 27. Rde1 {[%clk 0:00:48.8]} 27... Ne5 {[%clk
0:00:41.9]} 28. Qd1 {[%clk 0:00:49.2]} 28... Qc8 {[%clk 0:00:41.1]} 29. Ref1
{[%clk 0:00:44]} 29... Qa8 {[%clk 0:00:38.5]} 30. Be1 {[%clk 0:00:44.5]} 30...
Nf7 {[%clk 0:00:37.6]} 31. Qd3 {[%clk 0:00:41.3]} 31... Ne5 {[%clk 0:00:29]} 32.
Qd1 {[%clk 0:00:38.7]} 32... Rge6 {[%clk 0:00:28.7]} 33. Bc3 {[%clk 0:00:34.9]}
33... Nf7 {[%clk 0:00:27]} 34. Bd2 {[%clk 0:00:33.2]} 34... g5 {[%clk
0:00:22.9]} 35. Bh3 {[%clk 0:00:20.3]} 35... gxh4 {[%clk 0:00:15.6]} 36. gxh4+
{[%clk 0:00:20.1]} 36... Kf8 {[%clk 0:00:16]} 37. Bxf5 {[%clk 0:00:20]} 37...
Rf6 {[%clk 0:00:15.6]} 38. e4 {[%clk 0:00:20.2]} 38... Qd8 {[%clk 0:00:12.2]}
39. Rg4 {[%clk 0:00:17.9]} 39... Ne5 {[%clk 0:00:10.9]} 40. Bg5 {[%clk
0:00:15.6]} 40... h6 {[%clk 0:00:06.2]} 41. Bxf6 {[%clk 0:00:14.3]} 41... Qxf6
{[%clk 0:00:07.1]} 42. Rg3 {[%clk 0:00:11.7]} 42... Qxh4+ {[%clk 0:00:06.7]} 43.
Rh3 {[%clk 0:00:12.4]} 43... Qf4+ {[%clk 0:00:06.8]} 44. Kh1 {[%clk 0:00:13]}
44... Re7 {[%clk 0:00:06.1]} 45. Qc1 {[%clk 0:00:13.2]} 45... Qxc1 {[%clk
0:00:05.3]} 46. Rxc1 {[%clk 0:00:14.1]} 46... Nd3 {[%clk 0:00:05.2]} 47. Rf1
{[%clk 0:00:13.7]} 47... Rg7 {[%clk 0:00:01.9]} 48. Rxh6 {[%clk 0:00:12.8]}
48... Bc6 {[%clk 0:00:01.9]} 49. Rh8+ {[%clk 0:00:12.7]} 49... Ke7 {[%clk
0:00:02.1]} 50. Rh7 {[%clk 0:00:13.1]} 50... Rxh7+ {[%clk 0:00:02.1]} 51. Bxh7
{[%clk 0:00:14]} 51... Kf6 {[%clk 0:00:03]} 52. f4 {[%clk 0:00:14.1]} 52... Kg7
{[%clk 0:00:02.1]} 53. Bf5 {[%clk 0:00:13.7]} 53... Kf6 {[%clk 0:00:02.8]} 54.
Kh2 {[%clk 0:00:12.2]} 54... Nb4 {[%clk 0:00:03.4]} 55. Rf2 {[%clk 0:00:11.6]}
55... Nd3 {[%clk 0:00:03.6]} 56. Rf1 {[%clk 0:00:11.3]} 56... Nb4 {[%clk
0:00:04]} 57. a4 {[%clk 0:00:11.7]} 57... Nc2 {[%clk 0:00:04.2]} 58. Bg4 {[%clk
0:00:06.6]} 58... Ne3 {[%clk 0:00:02.9]} 59. Rg1 {[%clk 0:00:06]} 59... Bxe4
{[%clk 0:00:03.1]} 60. Bd1 {[%clk 0:00:05.4]} 60... Bd3 {[%clk 0:00:03.1]} 61.
Rg3 {[%clk 0:00:04.8]} 61... Nf1+ {[%clk 0:00:02.8]} 62. Kg2 {[%clk 0:00:05.4]}
62... Nxg3 {[%clk 0:00:03.1]} 63. Kxg3 {[%clk 0:00:06.3]} 63... Be4 {[%clk
0:00:03.5]} 64. Kf2 {[%clk 0:00:05.8]} 64... a5 {[%clk 0:00:03.7]} 65. Ke3
{[%clk 0:00:06.7]} 65... Bf5 {[%clk 0:00:03.7]} 66. Kd2 {[%clk 0:00:05.9]} 66...
Ke7 {[%clk 0:00:02.8]} 67. Bc2 {[%clk 0:00:05.5]} 67... Bg4 {[%clk 0:00:02.4]}
68. Ke3 {[%clk 0:00:05.4]} 68... c6 {[%clk 0:00:02.1]} 69. Be4 {[%clk
0:00:05.1]} 69... Bd7 {[%clk 0:00:02.2]} 70. f5 {[%clk 0:00:05.4]} 70... Kf6
{[%clk 0:00:02.6]} 71. Kf4 {[%clk 0:00:06]} 71... Be8 {[%clk 0:00:02.9]} 72. Bd3
{[%clk 0:00:05.8]} 72... Bf7 {[%clk 0:00:03.1]} 73. Kg4 {[%clk 0:00:06.4]} 73...
d5 {[%clk 0:00:03.3]} 74. Kf4 {[%clk 0:00:06.3]} 74... Bg8 {[%clk 0:00:02.5]}
75. Be2 {[%clk 0:00:06.3]} 75... Bf7 {[%clk 0:00:02.3]} 76. Bd3 {[%clk
0:00:05.2]} 76... Bg8 {[%clk 0:00:01.9]} 77. Bf1 {[%clk 0:00:01.7]} 77... Bf7
{[%clk 0:00:02.5]} 78. cxd5 {[%clk 0:00:02]} 78... cxd5 {[%clk 0:00:02.5]} 79.
Bb5 {[%clk 0:00:02.7]} 79... d4 {[%clk 0:00:02.3]} 80. Bd3 {[%clk 0:00:03.1]}
80... Bxb3 {[%clk 0:00:02]} 81. Bb5 {[%clk 0:00:04]} 81... c4 {[%clk 0:00:02.2]}
82. Ke4 {[%clk 0:00:04.6]} 82... c3 {[%clk 0:00:02.7]} 83. Bd3 {[%clk
0:00:02.9]} 83... c2 {[%clk 0:00:02.7]} 84. Bxc2 {[%clk 0:00:02.9]} 84... Bxc2+
{[%clk 0:00:03.1]} 85. Kxd4 {[%clk 0:00:03.8]} 85... Bxa4 {[%clk 0:00:03.3]} 86.
Kc3 {[%clk 0:00:04.7]} 86... Bc6 {[%clk 0:00:03.6]} 87. Kb2 {[%clk 0:00:05.6]}
87... a4 {[%clk 0:00:04]} 88. Ka1 {[%clk 0:00:06.5]} 88... Kxf5 {[%clk
0:00:04.4]} 89. Kb2 {[%clk 0:00:07.4]} 89... Ke4 {[%clk 0:00:04.9]} 90. Ka1
{[%clk 0:00:08.3]} 90... Kd4 {[%clk 0:00:05.8]} 91. Kb2 {[%clk 0:00:09.2]} 91...
Kc4 {[%clk 0:00:06.2]} 92. Kb1 {[%clk 0:00:10.1]} 92... Kb3 {[%clk 0:00:06.6]}
93. Ka1 {[%clk 0:00:11]} 93... a3 {[%clk 0:00:07.1]} 94. Kb1 {[%clk 0:00:11.9]}
94... Bd5 {[%clk 0:00:07.9]} 95. Ka1 {[%clk 0:00:12.8]} 95... Bc4 {[%clk
0:00:08.8]} 96. Kb1 {[%clk 0:00:13.5]} 96... Bb5 {[%clk 0:00:09.7]} 97. Ka1
{[%clk 0:00:14.4]} 97... Bc6 {[%clk 0:00:10.6]} 98. Kb1 {[%clk 0:00:15.3]} 98...
Bd5 {[%clk 0:00:11.2]} 99. Ka1 {[%clk 0:00:16.2]} 99... a2 {[%clk 0:00:11.5]}
1/2-1/2